bitfinex-derivatives/quotes_ETHF0:USTF0_20260223
["timestamp","ask_amount","ask_price","bid_price","bid_amount"]
[1771868413799,6.92970855,1845.4,1844.8,6.93803834]
[1771868414004,6.65873855,1845.4,1844.8,6.93803834]
[1771868414597,0.00384641,1845.7,1844.3,6.93227403]
[1771868414598,0.27095,1845.6,1844.3,6.93227403]
[1771868414898,6.92970855,1845.4,1844.3,7.20340403]
[1771868415099,0.67607958,1845.5,1844.3,7.20340403]
[1771868415100,0.271,1845.2,1844.3,6.93227403]
[1771868415302,6.65873855,1845.1,1844.3,6.93227403]
[1771868415496,6.65873855,1845.1,1844.3,6.93695919]
[1771868418104,6.69512924,1845.3,1844.3,6.93695919]
[1771868418303,6.69512924,1845.6,1844.5,7.05698071]
[1771868418710,6.69512924,1845.6,1844.7,7.05698071]
[1771868420406,6.4119897,1845.4,1844.5,6.50590203]
[1771868420607,6.4119897,1845.2,1844.3,6.51058719]
[1771868421215,6.4119897,1845.0,1844.3,6.51058719]
[1771868421811,6.4119897,1845.0,1844.3,0.00468516]
[1771868422014,6.4119897,1845.2,1844.3,6.51058719]
[1771868423311,6.4119897,1845.0,1844.3,6.51058719]
[1771868424016,6.4119897,1845.0,1844.3,0.00468516]
[1771868424516,6.4119897,1845.0,1844.3,6.51058719]
[1771868426420,6.4119897,1844.8,1844.3,0.00468516]
[1771868427821,6.4119897,1844.6,1844.3,0.00468516]
[1771868428123,6.6830897,1844.5,1843.7,6.50590203]
[1771868428725,6.6830897,1844.5,1843.6,6.50590203]
[1771868428923,6.4119897,1844.5,1843.6,6.51003582]
[1771868429225,12.08156,1845.3,1843.6,6.51003582]
[1771868429226,6.4119897,1844.8,1843.7,6.77712203]
[1771868429428,6.4119897,1845.2,1843.7,6.77712203]
[1771868429629,6.4119897,1845.0,1844.1,6.50590203]
[1771868430326,6.4119897,1845.3,1844.3,6.50590203]
[1771868430725,0.00384641,1845.7,1844.2,7.32704549]
[1771868430726,6.4119897,1845.5,1844.7,6.50590203]
[1771868431121,0.00384641,1845.7,1844.9,6.50590203]
[1771868431327,0.00384641,1845.7,1845.1,6.50590203]
[1771868431524,6.4119897,1846.0,1845.1,6.50590203]
[1771868431726,6.4119897,1846.0,1844.9,0.00663359]
[1771868431727,6.4119897,1846.6,1845.3,6.50590203]
[1771868431922,7.09035704,1846.5,1845.3,6.50590203]
[1771868432123,6.4119897,1846.5,1845.5,6.50590203]
[1771868432427,6.4119897,1846.3,1845.5,6.50590203]
[1771868432625,0.00426481,1846.5,1845.5,6.50590203]
[1771868432825,6.41625451,1846.5,1845.7,6.50590203]
[1771868433732,0.00426481,1846.5,1845.7,6.50590203]
[1771868433921,6.4119897,1846.7,1845.7,6.50590203]
[1771868434124,6.4119897,1847.0,1845.9,6.50590203]
[1771868434431,6.4119897,1846.8,1845.9,6.50590203]
[1771868435127,6.41613561,1846.8,1845.9,6.50590203]
[1771868436124,6.68690561,1846.8,1845.8,40.8]
[1771868436328,6.68690561,1846.8,1845.7,6.50590203]
[1771868437129,10.96947798,1847.5,1845.2,40.8]
[1771868437130,6.4119897,1847.4,1846.2,13.32588]
[1771868437430,6.6825197,1848.4,1846.7,6.50590203]
[1771868437628,6.6825497,1848.2,1846.7,6.50590203]
[1771868437932,6.6825697,1848.0,1846.7,6.50590203]
[1771868438129,6.4119897,1847.8,1846.9,6.50590203]
[1771868439332,6.41832519,1848.0,1847.1,6.50590203]
[1771868439524,0.00633549,1848.0,1847.1,6.50590203]
[1771868439723,6.41832519,1848.0,1847.3,6.50590203]
[1771868440035,6.41832519,1848.0,1847.1,13.70305542]
[1771868440435,6.41832519,1848.0,1847.1,6.50590203]
[1771868440635,6.4119897,1847.8,1846.8,6.50590203]
[1771868440934,6.4119897,1847.6,1846.7,6.51220653]
[1771868441130,6.4119897,1848.8,1847.2,13.16495203]
[1771868441327,6.4119897,1848.8,1847.3,6.50590203]
[1771868441528,6.4119897,1848.8,1847.6,6.50590203]
[1771868441835,6.4119897,1848.8,1847.5,0.27066]
[1771868441836,6.4119897,1848.8,1847.8,6.50590203]
[1771868442235,6.4184924,1848.8,1848.0,6.50590203]
[1771868442535,6.4184924,1848.8,1848.0,6.51288464]
[1771868442738,6.6511,1849.6,1848.0,6.51288464]
[1771868442739,6.4119897,1849.3,1848.2,6.50590203]
[1771868442930,6.4119897,1849.8,1848.2,6.50590203]
[1771868443132,6.4119897,1849.8,1848.6,6.50590203]
[1771868443535,6.4119897,1850.1,1848.8,6.50590203]
[1771868443736,6.41650012,1850.1,1848.8,6.50590203]
[1771868444038,6.41650012,1850.1,1849.0,6.50590203]
[1771868445231,6.41650012,1850.1,1849.2,6.50590203]
[1771868446036,6.41650012,1850.1,1848.6,6.50590203]
[1771868446340,6.41650012,1850.1,1848.7,6.50590203]
[1771868446539,6.4119897,1849.9,1848.7,6.50590203]
[1771868447438,6.4119897,1849.7,1848.7,6.50590203]
[1771868447642,6.4119897,1849.5,1848.1,6.50590203]
[1771868447941,6.9656602,1849.1,1848.1,6.50590203]
[1771868448436,6.9656602,1850.2,1849.0,6.6004422]
[1771868448640,7.24046062,1850.1,1849.1,6.6004422]
[1771868448940,6.97017062,1850.1,1849.1,6.6004422]
[1771868450132,6.97017062,1850.1,1847.7,10.14265987]
[1771868450133,6.9656602,1849.5,1848.4,6.6004422]
[1771868450536,6.9656602,1849.7,1848.6,6.6004422]
[1771868450733,6.9656602,1849.7,1848.8,6.6004422]
[1771868453243,6.9656602,1849.7,1848.7,40.8]
[1771868453642,6.9656602,1849.7,1848.6,6.6004422]
[1771868454849,7.2360002,1849.7,1848.6,6.6004422]
[1771868455143,6.9656602,1849.2,1848.2,6.6004422]
[1771868455344,6.9656602,1849.0,1848.0,6.60742481]
[1771868457851,6.9656602,1848.8,1848.0,6.60742481]
[1771868458149,6.9656602,1848.6,1848.0,0.00698261]
[1771868458349,6.9656602,1848.6,1847.8,6.6004422]
[1771868458546,6.9656602,1848.6,1847.2,6.6004422]
[1771868458850,6.9656602,1848.6,1847.4,6.6004422]
[1771868459352,6.9656602,1848.6,1847.6,6.6004422]
[1771868460445,6.9656602,1848.4,1847.6,6.6004422]
[1771868461345,6.9656602,1848.5,1847.6,6.6004422]
[1771868461545,6.9656602,1848.5,1847.4,6.60484649]
[1771868461946,6.9656602,1848.5,1847.6,6.6004422]
[1771868462750,6.9656602,1848.7,1847.8,6.6004422]
[1771868462949,16.81696,1849.6,1847.8,6.6004422]
[1771868462950,6.9656602,1849.1,1848.4,6.6004422]
[1771868463146,6.9656602,1849.7,1848.4,6.6004422]
[1771868463742,6.9656602,1849.7,1848.6,6.6004422]
[1771868463942,0.00652104,1849.7,1848.8,6.6004422]
[1771868464146,0.00652104,1849.7,1848.8,6.60675877]
[1771868464449,6.97218124,1849.7,1848.8,6.60675877]
[1771868464750,6.9656602,1850.1,1849.1,6.6004422]
[1771868464951,6.9656602,1850.3,1849.1,6.6004422]
[1771868465548,6.9656602,1850.3,1849.3,6.8708322]
[1771868465748,0.00686036,1850.3,1849.5,6.6004422]
[1771868466148,6.9656602,1850.9,1849.7,10.07868642]
[1771868466348,6.9656602,1850.9,1849.8,6.6004422]
[1771868466553,6.9656602,1850.7,1849.6,6.6004422]
[1771868467051,6.9656602,1850.7,1849.7,7.12923128]
[1771868467052,6.9656602,1850.5,1849.7,7.12923128]
[1771868467256,6.9656602,1850.5,1849.3,6.6004422]
[1771868467257,6.9656602,1850.3,1849.3,6.6004422]
[1771868467652,6.9656602,1850.3,1849.4,6.6004422]
[1771868468049,6.9656602,1850.3,1849.6,6.6004422]
[1771868468257,6.97067449,1850.5,1849.6,6.6004422]
[1771868468752,10.95490798,1851.5,1850.1,6.6004422]
[1771868468753,6.9656602,1851.2,1850.1,6.6004422]
[1771868468945,6.9656602,1851.0,1850.1,6.6004422]
[1771868469148,6.9656602,1851.9,1850.4,13.2479922]
[1771868469347,6.9656602,1851.9,1851.0,6.6004422]
[1771868469753,6.97239923,1851.9,1851.0,6.60745379]
[1771868470857,6.97239923,1851.9,1851.0,0.00701159]
[1771868471157,6.97239923,1851.9,1851.1,6.6004422]
[1771868471562,0.00673903,1851.9,1851.1,6.6004422]
[1771868471861,6.9656602,1852.6,1851.3,6.6004422]
[1771868472061,6.9656602,1852.2,1851.0,6.60745379]
[1771868472756,6.9656602,1852.0,1851.0,6.60745379]
[1771868472953,6.9656602,1851.9,1851.0,0.00701159]
[1771868473354,6.9656602,1852.1,1851.0,6.60745379]
[1771868473561,6.9656602,1852.1,1851.1,6.87285152]
[1771868473756,6.9656602,1852.1,1851.0,6.60745379]
[1771868474362,6.9656602,1852.1,1851.2,6.6004422]
[1771868474661,6.97024858,1852.2,1851.0,6.60745379]
[1771868475366,6.97024858,1852.2,1851.2,6.6004422]
[1771868475566,0.00458838,1852.2,1851.2,6.6004422]
[1771868475768,0.00458838,1852.2,1851.4,6.6004422]
[1771868476061,6.9656602,1852.5,1851.6,6.6004422]
[1771868476265,6.9656602,1852.8,1851.6,6.6004422]
[1771868476462,6.9656602,1852.8,1851.8,6.6004422]
[1771868476665,6.9656602,1852.8,1851.9,6.6004422]
[1771868476866,6.97002441,1852.8,1851.9,6.6004422]
[1771868477062,6.97002441,1852.8,1851.6,6.90662016]
[1771868477063,6.9656602,1852.7,1851.6,6.6004422]
[1771868477263,11.78638501,1853.3,1851.6,6.6004422]
[1771868477264,6.9656602,1853.2,1852.0,7.09326455]
[1771868477468,6.9656602,1853.2,1852.1,6.6004422]
[1771868477762,6.9656602,1853.2,1852.3,6.6004422]
[1771868477965,6.9656602,1853.2,1851.1,13.93924]
[1771868477966,6.78773371,1853.1,1852.1,6.44015912]
[1771868478264,6.78773371,1852.9,1852.1,0.00385624]
[1771868478566,13.42671371,1852.9,1852.1,0.00385624]
[1771868478768,6.78773371,1852.9,1852.1,0.00385624]
[1771868478967,6.78773371,1852.9,1851.6,6.44015912]
[1771868478968,6.78773371,1852.8,1851.6,6.44015912]
[1771868479762,6.78773371,1852.5,1851.2,47.24015912]
[1771868479964,6.78773371,1852.5,1851.3,6.53231636]
[1771868480270,6.69695041,1852.4,1851.3,6.53231636]
[1771868480473,6.69695041,1852.4,1851.5,6.53231636]
[1771868480770,6.69695041,1853.0,1851.5,6.53231636]
[1771868480970,6.69695041,1853.0,1851.7,6.53231636]
[1771868481167,0.26987,1852.9,1851.7,6.53231636]
[1771868481372,6.70355223,1853.1,1851.9,6.53231636]
[1771868481670,6.70355223,1853.1,1852.1,6.53231636]
[1771868482174,0.00660182,1853.1,1852.3,6.53231636]
[1771868482771,0.00660182,1853.1,1852.4,6.86166011]
[1771868483070,0.00660182,1853.1,1852.5,6.53231636]
[1771868483264,0.00660182,1853.1,1852.5,6.53811859]
[1771868483674,6.69695041,1853.5,1852.5,6.53811859]
[1771868484371,0.26968,1854.2,1852.7,6.53231636]
[1771868484572,6.69695041,1854.0,1852.7,6.53231636]
[1771868484773,6.69695041,1853.8,1852.6,6.53231636]
[1771868485172,0.26972,1853.9,1852.5,0.00580223]
[1771868485173,6.69695041,1853.6,1852.5,0.00580223]
[1771868485373,6.69695041,1853.4,1852.5,0.00580223]
[1771868485677,6.69695041,1853.4,1852.5,6.53811859]
[1771868485875,6.63605,1853.7,1852.5,0.00580223]
[1771868485876,6.69695041,1853.2,1852.5,0.00580223]
[1771868486371,6.69695041,1853.2,1852.5,6.53811859]
[1771868486577,6.69695041,1853.4,1852.5,6.53811859]
[1771868488074,6.69695041,1853.4,1852.6,6.85403606]
[1771868488272,6.69695041,1853.6,1852.7,6.53231636]
[1771868489675,6.69695041,1853.6,1852.5,6.53811859]
[1771868491476,6.69695041,1853.6,1852.7,6.53231636]
[1771868491874,6.69695041,1853.4,1852.5,0.00580223]
[1771868492071,6.69695041,1853.4,1852.5,6.53811859]
[1771868492575,6.69695041,1853.6,1852.7,6.53231636]
[1771868494175,6.69695041,1853.6,1852.8,7.1415708]
[1771868494578,6.69695041,1853.6,1852.7,6.53231636]
[1771868495082,6.96672041,1853.6,1852.5,6.53811859]
[1771868495378,6.69695041,1853.4,1852.5,0.00580223]
[1771868495676,6.69695041,1853.0,1852.1,6.53231636]
[1771868496088,6.69695041,1852.8,1851.9,6.53231636]
[1771868496883,6.70082201,1852.8,1851.9,6.53686891]
[1771868497072,6.69695041,1852.6,1851.9,0.00455255]
[1771868497278,6.70082201,1852.8,1851.9,6.53686891]
[1771868497784,7.37041954,1852.7,1851.9,6.53686891]
[1771868497982,6.69695041,1852.7,1851.9,6.53686891]
[1771868498385,6.69695041,1852.5,1851.9,6.53686891]
[1771868498587,6.70082201,1852.8,1851.9,6.53686891]
[1771868498881,0.0038716,1852.8,1852.1,6.53231636]
[1771868499283,0.0038716,1852.8,1852.3,6.53231636]
[1771868499482,6.69695041,1853.1,1852.3,6.53231636]
[1771868499682,6.69695041,1853.3,1852.3,6.53231636]
[1771868499883,6.69695041,1853.5,1852.7,6.53231636]
[1771868500189,6.69695041,1854.0,1852.8,7.04030043]
[1771868500377,0.26969,1854.2,1852.9,6.53231636]
[1771868500378,6.69695041,1853.8,1852.9,6.53231636]
[1771868500584,7.37257823,1853.7,1852.9,6.53231636]
[1771868500784,6.69695041,1853.9,1852.9,6.53231636]
[1771868501188,0.00554742,1854.0,1853.1,6.53231636]
[1771868501682,34.79178378,1854.8,1853.0,7.36464914]
[1771868501683,6.69695041,1854.9,1853.5,6.53231636]
[1771868501988,6.69695041,1854.3,1853.3,6.53231636]
[1771868502184,0.67615828,1854.2,1853.3,6.53231636]
[1771868502382,6.69695041,1854.4,1853.4,6.53231636]
[1771868502583,6.69695041,1854.2,1853.4,0.00487224]
[1771868502788,6.69695041,1854.0,1853.4,0.00487224]
[1771868503685,6.69695041,1853.8,1853.0,6.53231636]
[1771868504592,0.6761933,1853.7,1853.0,6.53647921]
[1771868504788,6.69695041,1853.8,1853.0,6.53647921]
[1771868505589,6.69695041,1854.3,1853.0,6.53647921]
[1771868505791,6.69695041,1854.1,1853.0,6.53647921]
[1771868505991,6.69695041,1853.9,1853.0,6.53647921]
[1771868506193,6.69695041,1853.7,1853.0,6.53647921]
[1771868506490,6.69695041,1854.1,1853.0,6.53647921]
[1771868506789,7.37338118,1854.0,1853.0,6.53647921]
[1771868506988,0.67643077,1853.9,1853.0,6.53647921]
[1771868507395,7.37338118,1853.9,1853.0,6.53647921]
[1771868507596,6.69695041,1853.9,1853.0,6.53647921]
[1771868507792,7.30055513,1853.8,1853.0,6.53647921]
[1771868507993,6.6242937,1853.8,1853.0,6.53647921]
[1771868509195,6.6242937,1853.6,1853.0,6.53647921]
[1771868509396,6.6242937,1853.6,1852.8,6.60325551]
[1771868509596,6.6242937,1853.4,1852.4,6.60325551]
[1771868509889,7.30071019,1853.3,1852.4,6.60325551]
[1771868510094,6.6242937,1853.3,1852.4,6.60325551]
[1771868510294,6.63529,1854.0,1852.4,6.60325551]
[1771868510295,6.6242937,1853.1,1852.4,6.60325551]
[1771868510496,7.30108338,1853.0,1852.4,0.00515523]
[1771868510696,6.6242937,1852.8,1852.2,6.60325551]
[1771868510892,6.6302266,1853.1,1852.2,6.60325551]
[1771868511099,6.6242937,1852.9,1852.2,6.60325551]
[1771868511697,6.6242937,1852.9,1852.2,6.60791931]
[1771868512389,6.6242937,1852.7,1852.2,0.0046638]
[1771868512998,6.6242937,1852.7,1852.2,6.60791931]
[1771868513299,6.6242937,1852.7,1852.0,6.60325551]
[1771868513598,6.6242937,1853.0,1852.0,6.87324551]
[1771868513797,0.67643877,1852.9,1852.2,6.60325551]
[1771868513999,6.6242937,1853.0,1852.2,6.60325551]
[1771868514190,0.67641043,1852.9,1852.2,6.6072694]
[1771868514395,6.6242937,1853.0,1852.2,6.6072694]
[1771868514599,0.67641206,1852.9,1852.2,6.6072694]
[1771868514799,6.6242937,1853.0,1852.2,6.6072694]
[1771868515001,7.30072319,1852.9,1852.2,0.00401389]
[1771868515201,0.0059329,1853.1,1852.2,0.00401389]
[1771868515202,7.30072319,1852.8,1852.2,0.00401389]
[1771868515395,6.6242937,1852.8,1852.2,6.6072694]
[1771868515698,6.9000666,1853.1,1852.2,0.00401389]
[1771868515889,6.6242937,1852.9,1852.2,0.00401389]
[1771868516199,6.6242937,1852.7,1852.2,0.00401389]
[1771868516398,6.6242937,1852.9,1852.2,6.6072694]
[1771868516601,7.30053466,1852.8,1852.2,6.6072694]
[1771868516899,6.6242937,1853.0,1852.2,6.6072694]
[1771868517099,7.30066228,1852.9,1852.2,6.6072694]
[1771868517302,7.30066228,1852.8,1852.2,6.6072694]
[1771868517599,6.6242937,1852.8,1852.2,6.6072694]
[1771868518194,6.6242937,1852.8,1852.2,0.00401389]
[1771868519499,7.3002069,1852.7,1852.2,0.00401389]
[1771868519799,6.6242937,1852.7,1852.2,0.00401389]
[1771868521494,6.6242937,1852.7,1851.7,6.60325551]
[1771868521794,6.6242937,1852.5,1851.2,0.27011]
[1771868521997,6.6242937,1852.1,1851.3,6.60325551]
[1771868522199,0.26997,1852.2,1850.8,0.27017]
[1771868522200,7.29964415,1852.0,1850.9,6.60325551]
[1771868522393,6.6242937,1852.0,1851.0,6.60325551]
[1771868522588,6.6242937,1851.8,1851.0,6.60854078]
[1771868522789,6.62913347,1851.8,1851.0,6.60854078]
[1771868524399,6.6242937,1852.4,1851.2,6.60325551]
[1771868524596,0.26991,1852.6,1851.2,6.60325551]
[1771868524597,6.6242937,1852.2,1851.2,6.60325551]
[1771868525000,6.64018,1852.6,1851.0,6.60854078]
[1771868525001,6.6242937,1852.0,1851.0,6.60854078]
[1771868525195,6.64077,1852.4,1851.0,0.00528527]
[1771868525196,6.6242937,1851.8,1851.0,0.00528527]
[1771868525396,6.6242937,1851.6,1850.8,6.60325551]
[1771868526499,6.6242937,1852.1,1851.2,6.60325551]
[1771868526698,6.6242937,1852.1,1851.3,6.87335551]
[1771868526900,6.6242937,1852.5,1851.3,6.87335551]
[1771868527097,6.6242937,1852.1,1851.2,7.06401389]
[1771868527298,6.6242937,1852.1,1851.0,6.60325551]
[1771868527501,6.6242937,1851.9,1851.0,6.60325551]
[1771868527999,6.6242937,1851.9,1850.8,6.61004247]
[1771868529599,6.6242937,1851.3,1850.2,6.60325551]
[1771868529800,6.6242937,1851.3,1850.0,0.27028]
[1771868529801,6.6242937,1851.3,1850.4,6.60325551]
[1771868530100,6.6242937,1851.3,1850.6,6.60325551]
[1771868530299,6.6242937,1851.5,1850.6,6.60325551]
[1771868530695,6.6242937,1851.5,1850.6,6.60917566]
[1771868531004,6.6242937,1851.3,1850.6,0.00592015]
[1771868531204,6.6242937,1851.3,1850.6,6.60917566]
[1771868531699,6.6242937,1851.3,1850.6,0.00592015]
[1771868531905,6.6242937,1851.3,1849.6,6.65049]
[1771868531906,6.6242937,1851.1,1849.8,6.60325551]
[1771868532206,6.6242937,1851.1,1849.9,6.60325551]
[1771868532804,6.6242937,1851.1,1849.9,6.60804711]
[1771868533003,6.6242937,1851.1,1850.1,6.60325551]
[1771868533502,6.6242937,1851.1,1849.9,6.60804711]
[1771868534209,6.6242937,1851.1,1849.9,0.0047916]
[1771868534910,6.6242937,1850.7,1849.5,6.60325551]
[1771868536001,6.63049078,1850.7,1849.7,6.60325551]
[1771868537305,6.63049078,1850.7,1849.7,6.53325551]
[1771868537514,6.6242937,1850.5,1849.5,6.60929561]
[1771868538407,6.6242937,1850.5,1849.5,0.0060401]
[1771868538614,6.6242937,1850.5,1849.5,6.20524492]
[1771868539812,6.6242937,1850.5,1849.7,6.19920482]
[1771868540118,6.6242937,1850.5,1849.7,6.33610222]
[1771868540817,6.62418042,1850.7,1849.7,6.33610222]
[1771868541718,6.89438042,1850.7,1849.7,6.33610222]
[1771868544612,6.89438042,1850.7,1849.5,6.34214232]
[1771868545117,6.61798334,1850.4,1849.5,6.34214232]
[1771868549522,6.61798334,1850.2,1849.5,6.34214232]
[1771868549718,6.61798334,1850.6,1849.5,6.34214232]
[1771868549916,7.28993666,1850.5,1849.5,6.34214232]
[1771868550121,6.61798334,1850.5,1849.5,6.34214232]
[1771868550823,6.61798334,1850.3,1849.5,6.34214232]
[1771868553527,6.61798334,1850.6,1849.5,6.34214232]
[1771868553728,6.61798334,1850.4,1849.5,6.34214232]
[1771868554230,6.61798334,1850.0,1849.1,6.33610222]
[1771868554428,6.61798334,1849.8,1849.1,6.33610222]
[1771868554626,0.67349161,1849.9,1848.5,0.2705]
[1771868554627,6.61798334,1849.6,1848.6,47.13610222]
[1771868554825,6.61798334,1849.6,1848.7,6.33610222]
[1771868555128,6.61798334,1849.4,1848.7,6.33610222]
[1771868555324,6.62220724,1849.4,1848.7,6.34114027]
[1771868555925,0.0042239,1849.4,1848.7,6.34114027]
[1771868556627,6.61798334,1849.9,1848.7,6.34114027]
[1771868556827,7.29135781,1849.8,1848.9,6.33610222]
[1771868557029,6.61798334,1849.8,1848.9,6.33610222]
[1771868557629,6.62303536,1849.8,1848.9,6.33610222]
[1771868558229,0.67422131,1849.7,1848.9,6.33610222]
[1771868558423,6.61798334,1849.7,1848.9,6.33610222]
[1771868558628,0.00505202,1849.8,1849.1,6.33610222]
[1771868559431,6.61798334,1850.2,1849.3,6.33610222]
[1771868559630,0.67506792,1850.1,1849.3,6.33610222]
[1771868559833,0.67506792,1850.0,1849.3,6.33610222]
[1771868560032,6.61798334,1850.2,1849.3,6.33610222]
[1771868560228,7.56336243,1850.1,1849.3,6.33610222]
[1771868560427,6.61798334,1849.9,1849.3,6.33610222]
[1771868560625,7.29308243,1849.8,1849.3,6.33610222]
[1771868560829,6.61798334,1849.8,1849.3,6.33610222]
[1771868561029,6.61798334,1850.0,1849.3,6.33610222]
[1771868561234,0.6755649,1849.9,1849.3,6.33610222]
[1771868561531,0.27028,1850.1,1849.3,6.33610222]
[1771868561730,0.00519424,1850.2,1849.5,6.33610222]
[1771868561935,6.89343758,1850.2,1849.4,7.19061467]
[1771868562234,0.00519424,1850.2,1849.3,6.33610222]
[1771868562433,6.62317758,1850.2,1849.3,6.33610222]
[1771868562634,0.00519424,1850.2,1849.5,6.33610222]
[1771868563139,6.62317758,1850.2,1849.7,6.33610222]
[1771868563330,0.00519424,1850.2,1849.7,6.33610222]
[1771868563525,6.62317758,1850.2,1849.7,6.33610222]
[1771868564429,0.00519424,1850.2,1849.7,6.33610222]
[1771868565232,6.61798334,1850.6,1849.7,6.33610222]
[1771868565637,6.61798334,1850.4,1849.5,6.33610222]
[1771868566333,6.61798334,1850.2,1849.2,6.33610222]
[1771868567639,6.61798334,1850.2,1849.4,6.33610222]
[1771868570241,6.55207628,1850.0,1848.8,6.16711007]
[1771868570634,6.55207628,1850.0,1848.9,6.16711007]
[1771868570841,6.82235628,1850.1,1848.9,6.16711007]
[1771868571137,6.82235628,1850.1,1849.1,6.16711007]
[1771868572041,6.55755156,1850.4,1849.3,6.16711007]
[1771868572240,6.55207628,1850.2,1849.3,6.16711007]
[1771868572534,6.82235628,1850.2,1849.1,6.16711007]
[1771868572734,6.55207628,1850.0,1849.1,6.16711007]
[1771868573635,0.67330887,1849.9,1849.1,6.16711007]
[1771868573840,0.67330887,1849.8,1849.1,6.16711007]
[1771868574634,0.27028,1850.2,1849.3,6.16711007]
[1771868574635,6.55207628,1850.1,1849.3,6.16711007]
[1771868575129,6.55755156,1850.4,1849.3,6.16711007]
[1771868575339,6.55755156,1850.4,1849.0,7.03501578]
[1771868575340,0.00547528,1850.4,1849.5,6.16711007]
[1771868575544,0.00547528,1850.4,1849.6,0.27035]
[1771868575745,6.55207628,1850.4,1849.7,6.16711007]
[1771868576538,0.27019,1850.8,1849.7,6.16711007]
[1771868576539,6.55207628,1850.7,1849.7,6.16711007]
[1771868576737,6.55687135,1850.7,1849.7,6.16711007]
[1771868577937,6.55687135,1850.7,1849.8,6.16711007]
[1771868579441,6.55207628,1850.5,1849.8,6.16711007]
[1771868580640,6.55687135,1850.7,1849.8,6.16711007]
[1771868580841,0.00479507,1850.7,1850.0,6.16711007]
[1771868581137,0.00479507,1850.7,1850.0,6.17284217]
[1771868581339,6.55207628,1851.1,1850.2,6.16711007]
[1771868581542,6.55207628,1851.3,1850.3,6.16711007]
[1771868581740,6.55207628,1851.3,1850.4,6.16711007]
[1771868582445,6.55626882,1851.3,1850.4,6.16711007]
[1771868584149,0.00419254,1851.3,1850.6,6.16711007]
[1771868584538,6.55207628,1851.6,1850.8,6.16711007]
[1771868584745,0.27003,1851.8,1850.8,6.16711007]
[1771868584746,6.82210628,1851.8,1850.8,6.16711007]
[1771868585045,6.55207628,1851.8,1851.0,6.16711007]
[1771868585342,6.55207628,1851.8,1851.2,6.16711007]
[1771868585547,6.55887293,1851.8,1851.2,6.16711007]
[1771868586447,6.82890293,1851.8,1850.8,6.16711007]
[1771868586647,6.55207628,1851.6,1850.4,6.16711007]
[1771868586950,6.55207628,1851.6,1850.6,6.16711007]
[1771868587544,6.82890293,1851.8,1850.8,6.16711007]
[1771868589244,6.82890293,1851.8,1850.9,13.14499886]
[1771868589748,6.82890293,1851.8,1850.9,6.16711007]
[1771868590552,6.82890293,1851.8,1850.6,6.16711007]
[1771868590750,6.82213628,1851.6,1850.6,6.16711007]
[1771868591750,0.27006,1851.6,1850.6,6.16711007]
[1771868592052,6.55887293,1851.8,1851.0,6.16711007]
[1771868592244,6.55207628,1851.6,1850.8,6.16711007]
[1771868594951,6.55887293,1851.8,1850.8,6.16711007]
[1771868596354,6.55207628,1851.6,1850.8,6.16711007]
[1771868596545,6.82214628,1851.5,1850.8,6.16711007]
[1771868597649,6.82214628,1851.5,1850.3,3.74156952]
[1771868597650,6.82214628,1851.5,1850.6,6.30241703]
[1771868597954,6.42688318,1851.1,1850.1,6.30241703]
[1771868598153,6.42688318,1851.1,1849.9,0.2703]
[1771868598154,6.69701318,1851.2,1850.3,6.30241703]
[1771868598854,6.69701318,1851.2,1850.1,6.30241703]
[1771868599049,6.42688318,1851.0,1850.1,6.30241703]
[1771868600551,6.58505996,1851.2,1850.1,6.30241703]
[1771868600751,6.31492996,1851.4,1850.4,6.19987047]
[1771868601158,6.58498996,1851.6,1850.6,6.19987047]
[1771868601855,13.08569284,1852.5,1850.8,6.19987047]
[1771868601856,6.31492996,1851.9,1850.8,6.19987047]
[1771868602153,6.32172661,1851.8,1850.9,7.07025434]
[1771868602355,6.32172661,1851.8,1851.0,6.19987047]
[1771868602555,0.66705996,1851.7,1850.9,6.19987047]
[1771868602751,6.32172661,1851.8,1850.1,6.19987047]
[1771868602752,6.31492996,1851.4,1850.1,6.19987047]
[1771868602951,6.31492996,1851.4,1850.3,6.19987047]
[1771868603153,6.31492996,1851.4,1850.5,6.19987047]
[1771868604457,6.31492996,1851.7,1850.5,6.19987047]
[1771868604651,6.98323005,1851.6,1850.5,6.19987047]
[1771868604950,6.98323005,1851.5,1850.5,6.47008047]
[1771868605158,6.31492996,1851.3,1850.5,6.19987047]
[1771868607356,6.31492996,1851.1,1850.5,6.19987047]
[1771868610062,6.31492996,1851.3,1850.5,6.19987047]
[1771868610258,0.66996558,1851.2,1850.5,6.19987047]
[1771868610460,0.66996558,1851.1,1850.5,6.19987047]
[1771868610658,6.31492996,1851.3,1850.5,6.19987047]
[1771868610858,0.67001494,1851.2,1850.5,6.19987047]
[1771868611062,6.31492996,1851.7,1850.5,6.19987047]
[1771868611261,13.75126612,1851.6,1850.5,6.19987047]
[1771868611461,0.67008917,1851.5,1850.5,6.19987047]
[1771868611662,6.98501913,1851.5,1850.7,6.19987047]
[1771868611864,6.31492996,1851.3,1850.7,6.19987047]
[1771868612263,6.31492996,1851.1,1850.7,6.19987047]
[1771868613256,6.31492996,1851.4,1850.7,6.19987047]
[1771868613467,6.98512716,1851.3,1850.7,6.19987047]
[1771868613663,0.6701972,1851.2,1850.7,6.19987047]
[1771868613866,6.31492996,1851.3,1850.7,6.19987047]
[1771868614067,0.67019737,1851.2,1850.7,6.19987047]
[1771868614366,0.27008,1851.5,1850.7,6.19987047]
[1771868614367,6.58500996,1851.5,1850.7,6.19987047]
[1771868614568,6.98516919,1851.4,1850.7,6.19987047]
[1771868614759,0.27008,1851.5,1850.7,6.19987047]
[1771868614962,6.31492996,1851.7,1850.7,6.19987047]
[1771868615164,6.32172661,1851.8,1850.9,6.19987047]
[1771868616070,0.00679665,1851.8,1851.1,6.19987047]
[1771868616272,6.31492996,1852.1,1851.1,6.19987047]
[1771868616467,6.31492996,1852.1,1851.3,6.19987047]
[1771868617268,6.32179022,1852.1,1851.3,6.20524894]
[1771868617570,6.32179022,1852.1,1850.5,5.407]
[1771868617571,6.31492996,1851.1,1850.5,5.407]
[1771868617767,6.31492996,1850.7,1849.9,6.19987047]
[1771868618563,6.31943527,1850.7,1849.9,6.20589186]
[1771868619671,6.31492996,1850.1,1848.3,6.19987047]
[1771868619865,6.31492996,1850.0,1848.6,6.19987047]
[1771868620065,6.31492996,1850.0,1849.2,6.19987047]
[1771868620470,6.31492996,1850.6,1849.2,6.19987047]
[1771868620671,6.31492996,1850.6,1849.2,6.20625593]
[1771868622070,6.31492996,1850.3,1849.2,6.20625593]
[1771868622771,0.00450531,1850.7,1850.0,6.19987047]
[1771868622970,6.31492996,1851.2,1850.2,6.19987047]
[1771868623872,6.3210491,1851.2,1850.2,6.19987047]
[1771868626974,6.3210491,1851.2,1850.4,6.19987047]
[1771868627171,6.31492996,1851.4,1850.4,6.19987047]
[1771868627576,6.31492996,1851.4,1850.6,6.19987047]
[1771868628176,6.32149861,1851.4,1850.6,6.20638914]
[1771868632675,6.64981881,1851.2,1850.6,0.00651867]
[1771868632881,6.64981881,1850.8,1850.0,6.79912894]
[1771868633181,6.64981881,1850.6,1850.0,6.79912894]
[1771868633380,6.64981881,1850.6,1849.8,6.79912894]
[1771868633780,6.64981881,1850.6,1849.8,6.80542572]